Cogmind - Beta 16.1 @@@ ROGUE MODE // 2026.02.23 @ 22:28:20 Player: Megaknight51 Result: Destroyed by D-53 Grenadier with Mini Grenade Launcher Performance ------------- Evolutions (0) 0 Regions Visited (2) 400 Robots Destroyed (14) 70 Value Destroyed (167) 167 Prototype IDs (2) 40 Alien Tech Used (0) 0 Bonus (0) 0 TOTAL SCORE: 677 Bonus ------- None Cogmind --------- Core Integrity 0/250 Matter 119/300 Energy 100/100 System Corruption 3% Temperature Cool (0) Movement Treading (160) Location -10/Mines Parts ------- > --- POWER (1) -------- (None) > --- PROPULSION (2) --- Light Treads > --- UTILITY (2) ------ Large Storage Unit > --- WEAPON (2) ------- (None) > --- INVENTORY (15) --- Ion Engine Ion Engine Wheel Wheel Power Shielding Assault Rifle Assault Rifle Assault Rifle Assault Rifle Grenade Launcher Mining Laser Peak State ------------ > --- POWER ------------ Light Ion Engine > --- PROPULSION ------- Wheel Wheel > --- UTILITY ---------- Small Storage Unit Large Storage Unit > --- WEAPON ----------- Assault Rifle Light Assault Rifle > --- INVENTORY -------- Ion Engine Light Ion Engine Light Treads Wheel Wheel Wheel [Rating: 7] Favorites ----------- Power Light Ion Engine Engine Light Ion Engine Propulsion Wheel Treads Light Treads Wheel Wheel Utility Large Storage Unit Storage Large Storage Unit Weapon Assault Rifle Ballistic Gun Assault Rifle Build | -11 -10 -10 ------- Run | Yrd Mat Min Slots Evolved . | . . . Power . | . . . Propulsion . | . . . Utility . | . . . Weapon . | . . . Parts Attached 13 | 7 6 . Power 2 | 1 1 . Engine 2 | 1 1 . Core . | . . . Reactor . | . . . Propulsion 5 | 3 2 . Treads 1 | 1 . . Leg . | . . . Wheel 4 | 2 2 . Hover . | . . . Flight . | . . . Utility 2 | 1 1 . Device . | . . . Storage 2 | 1 1 . Processor . | . . . Hackware . | . . . Protection . | . . . Artifact . | . . . Weapon 4 | 2 2 . Energy Gun . | . . . Energy Cannon . | . . . Ballistic Gun 4 | 2 2 . Ballistic Cannon . | . . . Launcher . | . . . Special Weapon . | . . . Impact Weapon . | . . . Slashing Weapon . | . . . Piercing Weapon . | . . . Special Melee Weapon . | . . . Unidentified Prototypes . | . . . Parts Lost 9 | . 4 5 Power 2 | . 1 1 Propulsion 4 | . 2 2 Utility . | . . . Weapon 3 | . 1 2 Highest Loss Streak 5 | . 4 5 To Critical Strikes . | . . . Average Backups 10 | 2 12 11 Power 2 | . 2 2 Propulsion 3 | 1 3 2 Utility . | . . 1 Weapon 4 | . 4 6 Tool/Special . | . . . Unused Backups 12 | . 2 10 Power 3 | . 1 2 Propulsion 3 | . 1 2 Utility 1 | . . 1 Weapon 5 | . . 5 Tool/Special . | . . . Average Slot Usage (%) 80 | . 81 80 Engine 12 | . 11 12 Wheel 26 | . 26 25 Storage 14 | . 14 14 Ballistic Gun 27 | . 27 25 Peak Build Rating 7 | 6 7 7 Average Rating 6 | 5 6 6 On Entrance 4 | . 6 7 Avg Prop Armor Cover (%) . | . . . Naked Turns . | . . . Heaviest Build 28 | 11 28 28 Greatest Support 20 | 20 20 20 Greatest Overweight (x) 1 | . 1 1 Average Overweight (x) . | . . . Largest Inventory Capacity 15 | 8 15 15 Average Capacity 13 | 7 14 15 Most Carried 15 | 6 15 12 Average Carried 10 | 2 12 11 Final Capacity 15 | 8 15 15 Final Carried 12 | 6 12 11 Class Distribution -------------------- 100% | Mutant Dominant Class ---------------- Mutant | -10/Materials Mutant | -10/Mines Resources | -11 -10 -10 ----------- Run | Yrd Mat Min Matter Collected 381 | 287 94 . Remotely . | . . . Salvage Created 322 | 134 188 . Parts 26 | 10 16 . Haulers Intercepted . | . . . Recyclers Shooed . | . . . Parts Field Recycled . | . . . Retrieved Matter . | . . . Parts Self-Destructed . | . . . Prevented . | . . . Parts Restored . | . . . Kills | -11 -10 -10 ------- Run | Yrd Mat Min Combat Hostiles Destroyed 7 | . 7 . Guns 7 | . 7 . Classes Destroyed 5 | 2 3 . Worker 2 | . 2 . Tunneler 4 | 4 . . Recycler 1 | 1 . . Swarmer 5 | . 5 . Grunt 2 | . 2 . Best Kill Streak 6 | 4 6 . Combat Bots Only 4 | . 4 . Max Kills in Single Turn 1 | 1 1 . Gunslinging . | . . . Exploded . | . . . Melee . | . . . Uniques/NPCs Destroyed . | . . . Combat | -11 -10 -10 -------- Run | Yrd Mat Min Hostile Shots Fired 84 | . 72 12 Missed 18 | . 18 . Hits 66 | . 54 12 Projectile 66 | . 54 12 AOE 11 | . . 11 Critical Strikes 1 | . 1 . Damage Taken 996 | . 556 440 Core 268 | . 126 142 Absorbed by Shields . | . . . Core Remaining (%) 100 | 100 . . Volleys Fired 68 | 22 44 2 Largest 2 | 2 2 2 Hottest 40 | 40 40 40 Shots Fired 131 | 44 83 4 Gun 131 | 44 83 4 Cannon . | . . . Launcher . | . . . Special . | . . . Kinetic 131 | 44 83 4 Thermal . | . . . Explosive . | . . . Electromagnetic . | . . . Robot Hit Streak 5 | 5 4 2 Robot Miss Streak 10 | 2 10 1 Penetration Max . | . . . Secondary Targets 2 | . 2 . Max Gunslinging Chain 1 | . 1 . Shots Hit Robots 67 | 26 39 2 Core Hits 26 | 9 17 . Critical Kills . | . . . Critical Parts Destroyed 1 | . . 1 Critical Strikes 1 | . . 1 Destroy 1 | . . 1 Melee Attacks . | . . . Impact . | . . . Slashing . | . . . Piercing . | . . . Sneak Attacks . | . . . Combat Hostiles . | . . . Follow-up Attacks . | . . . Damage Inflicted 800 | 303 479 18 Guns 800 | 303 479 18 Cannons . | . . . Explosions . | . . . Melee . | . . . Ramming . | . . . Kinetic 800 | 303 479 18 Thermal . | . . . Explosive . | . . . Electromagnetic . | . . . Impact . | . . . Slashing . | . . . Piercing . | . . . Highest Corruption 3 | . 3 3 Average Corruption 1 | . 1 3 Corruption Purged . | . . . Corruption Blocked . | . . . Effects 3 | . 2 1 Message Errors 1 | . . 1 Heat Flow Errors 1 | . 1 . Data Loss (major) 1 | . 1 . Overload Shots . | . . . Overflow Damage . | . . . Projectiles . | . . . Explosions . | . . . Melee . | . . . Knockbacks . | . . . Impact . | . . . Kinetic . | . . . Secondary . | . . . Self-Inflicted Damage . | . . . Shots . | . . . Rammed . | . . . Targets Rammed . | . . . Kicked . | . . . Crushed . | . . . Highest Temperature 223 | . 223 . Average Temperature 61 | . 61 . Received Heat Transfer 111 | . 111 . Siege Activations . | . . . Martial Activations . | . . . Shielding Activations . | . . . Robots Disrupted . | . . . Combat Hostiles . | . . . Robots Corrupted . | . . . Combat Hostiles . | . . . Parts Fried . | . . . Impact Corruptions . | . . . Robots Melted . | . . . Combat Hostiles . | . . . Parts Melted . | . . . Heat Transferred . | . . . Parts Sabotaged . | . . . Parts Stolen . | . . . Parts Stripped . | . . . Power Chain Reactions . | . . . Alert | -11 -10 -10 ------- Run | Yrd Mat Min Maximum Alert Level . | . . . Low Security (%) 100 | 100 100 100 Level 1 . | . . . Level 2 . | . . . Level 3 . | . . . Level 4 . | . . . Level 5 . | . . . High Security . | . . . Max Security . | . . . Peak Influence 90 | 15 90 23 Initial 23 | . . 23 Average 18 | 2 25 6 Influence Increases 246 | 25 221 . Destroy 0b10 Robot/C 140 | . 140 . Destroy 0b10 Robot/NC 35 | 25 10 . Destroy Leader 20 | . 20 . Successful Hack 21 | . 21 . Lose Combat Pursuer 30 | . 30 . Influence Decreases 246 | 25 161 60 Entered New Map 37 | . . 37 Time Decay 169 | 25 121 23 Lost Part 40 | . 40 . Squads Dispatched 1 | . 1 . Investigation . | . . . Extermination . | . . . Reinforcement 1 | . 1 . Assault . | . . . Garrison . | . . . Intercept . | . . . Searches Triggered . | . . . Construction Impeded . | . . . Haulers Reinforced . | . . . Active Scanning Responses . | . . . Cargo Convoy Interrupts . | . . . Stealth | -11 -10 -10 --------- Run | Yrd Mat Min Distress Signals . | . . . Communications Jammed . | . . . Distress Signals . | . . . Times Spotted 21 | . 15 6 Peak Tracking Total 12 | . 6 12 Tactical Retreats 2 | . 1 1 Traps | -11 -10 -10 ------- Run | Yrd Mat Min Traps Triggered 4 | . 4 . Indirectly . | . . . Trap Hack Attempts . | . . . Triggered . | . . . Disarmed . | . . . Reprogrammed . | . . . Reused . | . . . Traps Extracted . | . . . Installed . | . . . Triggered . | . . . Machines | -11 -10 -10 ---------- Run | Yrd Mat Min Machines Disabled . | . . . Max in Single Turn . | . . . Machines Repaired . | . . . Machines Dismantled . | . . . Machines Sabotaged . | . . . Overloaded Fab Kills . | . . . Hacking | -11 -10 -10 --------- Run | Yrd Mat Min Machines Accessed 4 | . 4 . Terminals 4 | . 4 . Fabricators . | . . . Repair Stations . | . . . Recycling Units . | . . . Scanalyzers . | . . . Garrison Access . | . . . Total Hacks 8 | . 8 . Successful 4 | . 4 . Failed 3 | . 3 . Catastrophic 2 | . 2 . Database Lockouts 1 | . 1 . Manual 6 | . 6 . Terminals 8 | . 8 . Fabricators . | . . . Repair Stations . | . . . Recycling Units . | . . . Scanalyzers . | . . . Garrison Access . | . . . Terminal Hacks 4 | . 4 . Robot Analysis 1 | . 1 . Prototype ID Bank 1 | . 1 . Branch Access Points 1 | . 1 . Registered Components 1 | . 1 . Fabricator Hacks . | . . . Repair Station Hacks . | . . . Recycling Unit Hacks . | . . . Scanalyzer . | . . . Garrison Access Hacks . | . . . Unauthorized Hacks . | . . . Terminals . | . . . Fabricators . | . . . Repair Stations . | . . . Recycling Units . | . . . Scanalyzers . | . . . Garrison Access . | . . . Data Cores Recovered . | . . . Used . | . . . Hacking Detections 2 | . 2 . Full Trace Events . | . . . Feedback Events . | . . . Feedback Blocked . | . . . Robot Schematics Acquired . | . . . Robots Built . | . . . Authchips . | . . . Time . | . . . Total Robot Build Rating . | . . . Part Schematics Acquired . | . . . Parts Built . | . . . Authchips . | . . . Time . | . . . Total Part Build Rating . | . . . Part Studies Acquired . | . . . Parts Repaired . | . . . Time . | . . . Parts Recycled . | . . . Recycled Matter . | . . . Retrieved Matter . | . . . Retrieved Components . | . . . Parts Scanalyzed . | . . . Part Schematics Acquired . | . . . Parts Damaged . | . . . Bothacking | -11 -10 -10 ------------ Run | Yrd Mat Min Used RIF Installer . | . . . Robots Hacked . | . . . Non-combat . | . . . Combat . | . . . Robot Hacks Applied . | . . . Relay Couplers Released . | . . . Fabnet Peak Effective % . | . . . Robots Rewired . | . . . Allies Hacked . | . . . Hacks Repelled . | . . . Allies | -11 -10 -10 -------- Run | Yrd Mat Min Total Allies . | . . . Largest Group . | . . . Highest-Rated Group . | . . . Highest-Rated Ally . | . . . Total Orders . | . . . Ally Attacks . | . . . Total Damage . | . . . Kills . | . . . Allies Corrupted . | . . . Allies Melted . | . . . Intel | -11 -10 -10 ------- Run | Yrd Mat Min Active Infowar (turns) . | . . . Robot Analysis Total 1 | . 1 . Derelict Logs Recovered . | . . . Drone Launches . | . . . Drone Recoveries . | . . . Exploration | -11 -10 -10 ------------- Run | Yrd Mat Min Turns Passed 769 | 159 496 114 Spaces Moved 561 | 103 352 106 Core 4 | 4 . . Treads 8 | 1 3 4 Legs . | . . . Wheels 549 | 98 349 102 Hover . | . . . Flight . | . . . Fastest Speed 50 | 50 80 95 Average Speed 93 | 79 95 98 Slowest Speed 240 | 160 240 240 Overloaded Moves . | . . . Propulsion Burnouts . | . . . Robots Hopped . | . . . Potential Cave-ins . | . . . Cave-ins Triggered . | . . . Exploration Rate (%) 36 | 3 73 34 Regions Visited 2 Branch Regions 1 Pre-discovered Areas . | . . . Known Exits Taken 1 | . 1 . Unknown Exits Taken 1 | 1 . . Scrap Searched . | . . . Spaces Dug . | . . . Terrain Destroyed . | . . . Melee . | . . . Projectile . | . . . AOE . | . . . Terrain Rammed . | . . . Walls Destroyed . | . . . Machines Disabled . | . . . Actions | -11 -10 -10 --------- Run | Yrd Mat Min Total 690 | 137 441 112 Wait 24 | . 21 3 Move 559 | 102 351 106 Hop . | . . . Pick Up 17 | 5 12 . Fast Attach 8 | 7 1 . Attach 6 | . 5 1 Detach 3 | 1 2 . Swap 1 | . 1 . Drop 4 | . 4 . Fire 68 | 22 44 2 Melee . | . . . Ram . | . . . Kick . | . . . Crush . | . . . Escape Stasis . | . . . Rewire . | . . . Trap . | . . . Miscellaneous . | . . . Route ------- -11/Scrapyard -10/Materials (discovered 3 exits: [*Mat x2] / *Min) -10/Mines History --------- Turn | Location | Event 34 | -11/Scrapyard | Discovered new exit (range 15) 160 | -11/Scrapyard | Entered Materials 284 | -10/Materials | Discovered new exit (range 5) 315 | -10/Materials | Build established: Mutant 332 | -10/Materials | Central database locked down 332 | -10/Materials | Identified exit to Mines 407 | -10/Materials | Discovered new exit (range 10) 515 | -10/Materials | Lost 4 parts (1p2n1w) 597 | -10/Materials | Core integrity fell below 50% 656 | -10/Materials | Entered Mines 666 | -10/Mines | Met a Derelict bent on vengeance 751 | -10/Mines | Assembled infested the area 768 | -10/Mines | Core integrity fell below 20% 770 | -10/Mines | Destroyed by D-53 Grenadier with Mini Grenade Launcher Last Messages --------------- 00622_ The floor emits a surge of raw power. 00622_ System corrupted (+2). 00636_ K-01 Serf destroyed. 00644_ U-05 Engineer lays Concrete. 00652_ Acquired Mining Laser. LOCATION=MINES GOAL=ESCAPE 00700_ T-07 Excavator suffers critical hit (Destroy). 00700_ Destroyed Wheel. 00705_ F8:FK15CV6UFCWG:OROE33XGPOZC/C4GLEJKB=D 00751_ ALERT: Infestation in the mines, dispatching Demolisher response squad. 00761_ C-45 Heavy ARC bursts open, deploying its payload. 00761_ D-53 Grenadier unfolds itself. 00761_ T-07 Excavator destroyed. 00761_ Wheel destroyed. 00765_ Assault Rifle destroyed. 00766_ Lgt. Assault Rifle destroyed. 00767_ Ion Engine destroyed. 00770_ The unstable cave ceiling collapses. Map ----- +----------------------------------------------------+ | ?????????????????????????????????????????? | | ??????????????????? ?????????????????????? | | ??????????????????? ??????????????????? | | ??????????????????? ???????????????????? | | ?????????????????? ????????????????????? | | ?????????????????? ????????????????????? | | ?????????????????? ?????????????????????? | | ????????????????? #?????????????????????? | | ????????????????? ##????????????????????? | | ????????????????? #????????????????????? | | ????????????????# #????? ?????????????? | | ??????????###### #???? ??????????????? | | ???????#### #???? ???????????????? | | ??????## #???? ????????????????? | | ??????# ##???? ?????????????????? | | ??????# #???? #?????????????????? | | ??????## ####? #?????????????????? | | ???????## ### t#?????????????????? | | ????????# ##????????????????? | | ????????# # r ##???????????????? | | ????????## # dd ##??????????????? | | ?????????#### ##?????????????? | | ????????????# #?????????????? | | ????????????# # #?????????????? | | ????????????# ##? ##?????????????? | | ????????????# @ #??##??????????????? | | ????????????# #??????????????????? | | ????????????## ##????????????????### | | ?????????????## ####????????????????## | | ???####???????# ###???????????????????# | | ??## ##??????#u#?????????????????????# | | ??# ##?????#t#???????????????####??# | | ??# ####### #????????????#### #### | | ???# ## #???????????## ## | | ???## ## #####???????????# | | ????# ## #???????????????# | | ???## ## #???????????????## | | ???# #???????????????## | | ???# ## ###????????????#### ## # | | ???###### #?????????????## #### ## | | ????????# #?????????????# ##?# #? | | ????????# #?????????????# ## #? | | ????????# #?????????????## # | | ????????# #??????????????# # | | ????????# #?????????????## # | | ????????# ############?## | | ????????# #?# """ | | ????????############ ### """ ### | | ???????????????????# """ ##?? | | ???????????????????##### ##??? | +----------------------------------------------------+ Best States ------------- Heat Dissipation 25 Energy Generation 10 Energy Capacity 250 Matter Stores 229 Matter Capacity 300 Sight Range 16 Terrain Scan Density 10 Evasion (%) 44 Recoil Reduction 1 Item Schematics ----------------- None Robot Schematics ------------------ None Fabricated ------------ Nothing Repaired ---------- Nothing Studied --------- None Alien Tech Used ----------------- None Achievements -------------- None Challenges ------------ None Game ------ Seed CompactDecoyWell Manual? 0 Play Time 00:07:16 Cumulative 99.8 hours Start 2026.02.23 @ 21:47:11 End 2026.02.23 @ 22:28:20 Sessions 1 Manual Loads 0 Difficulty Rogue Special Mode None Game No. 203 Rogue 203 Adventurer 0 Explorer 0 Win Type - Total 2 Types 1/0/0/1/0/0/0/0/0/0 Lore% 53 Gallery% 40 Achievement% 40 Wizard Run 0 Options --------- Layout 0 ASCII 0 Keyboard 1 Movement Arrows Keybinds 0 Fullscreen 1 Font 18/Smallcaps Map View 76x50 Zoom Use 64% Tactical HUD 1 Map Filters NONE Filters NONE Steam 1 RUN: 9c281567-f484-4801-a2a2-b76fc78219b1